bitfinex/quotes_ETHUSD_20251117
["timestamp","ask_amount","ask_price","bid_price","bid_amount"]
[1763339355920,0.6513,3131.6,3130.6,0.22753684]
[1763339355921,0.4587,3131.5,3130.6,2.27536843]
[1763339356950,0.1926,3131.6,3130.6,2.27536843]
[1763339357134,0.1926,3131.6,3130.7,2.46316843]
[1763339357338,0.4662,3132.5,3130.9,2.27536843]
[1763339357635,0.1968,3133.0,3131.1,2.27536843]
[1763339357636,0.4662,3132.9,3131.1,2.27536843]
[1763339358449,0.4662,3132.9,3130.7,3.03201053]
[1763339358450,1.5374072,3132.7,3130.8,2.27536843]
[1763339358612,0.29858648,3132.6,3130.8,2.27536843]
[1763339358808,1.56968684,3132.6,3130.9,0.22853684]
[1763339359011,0.7648092,3132.5,3130.9,0.001]
[1763339359210,0.1956,3131.0,3130.9,0.001]
[1763339359735,0.6618,3131.0,3130.9,0.001]
[1763339361641,1.3435001,3133.9,3130.9,0.001]
[1763339361847,1.81414575,3133.0,3129.9,2.48980453]
[1763339362076,1.54329713,3132.8,3130.8,1.70311933]
[1763339362243,1.54361559,3132.6,3130.8,1.70311933]
[1763339362434,1.5287796,3132.4,3130.8,1.70311933]
[1763339362629,0.29881434,3132.3,3131.0,1.70311933]
[1763339362872,0.29881434,3132.2,3131.0,1.70311933]
[1763339363072,0.29881434,3132.1,3131.1,1.70311933]
[1763339363234,1.53853208,3132.5,3131.1,1.70311933]
[1763339363436,1.52980186,3132.3,3131.1,1.70311933]
[1763339363629,1.82864937,3132.2,3131.1,1.70311933]
[1763339363871,0.29881434,3132.1,3131.1,1.70311933]
[1763339364170,1.5353208,3131.8,3130.1,0.1868]
[1763339364368,0.29881434,3131.7,3129.6,4.64998992]
[1763339364739,0.405504,3131.7,3129.6,4.16508992]
[1763339365097,2.96787594,3131.8,3129.6,3.97088992]
[1763339365098,0.405504,3131.5,3129.6,3.97088992]
[1763339365284,0.405504,3131.5,3129.3,0.6717]
[1763339365285,0.29881434,3131.4,3129.3,4.15768992]
[1763339365571,0.405504,3131.2,3129.2,3.97088992]
[1763339365742,0.405504,3131.0,3129.2,3.97088992]
[1763339365944,0.29881434,3130.9,3129.1,4.15768992]
[1763339366168,0.405504,3131.7,3129.1,4.64258992]
[1763339366374,0.29902661,3131.6,3129.2,3.97088992]
[1763339366579,0.405504,3131.4,3129.3,0.46425899]
[1763339366752,0.405504,3131.2,3129.3,0.46425899]
[1763339366955,0.29902661,3131.1,3129.4,0.4849]
[1763339367464,0.405504,3131.0,3129.3,0.46425899]
[1763339367651,0.405504,3131.7,3129.3,0.46425899]
[1763339367857,0.405504,3131.5,3129.4,0.44351489]
[1763339368078,0.405504,3131.1,3130.9,1.1e-07]
[1763339368379,1.99573165,3130.9,3129.4,0.44351489]
[1763339368542,1.99573165,3130.9,3129.1,4.15768992]
[1763339368744,1.99573165,3130.9,3129.1,3.97088992]
[1763339368956,1.98967418,3130.7,3129.1,3.97088992]
[1763339369161,0.405504,3130.5,3129.0,0.001]
[1763339369585,0.19408248,3131.6,3129.0,0.001]
[1763339369586,0.19408248,3131.6,3129.1,0.1868]
[1763339369901,0.405504,3131.4,3129.0,0.001]
[1763339370079,0.405504,3130.8,3129.1,3.97088992]
[1763339370400,0.405504,3130.6,3129.0,3.97188992]
[1763339370604,0.405504,3131.6,3129.1,0.1868]
[1763339370777,1.55422911,3131.1,3129.4,2.84226]
[1763339371101,0.405504,3130.7,3129.5,2.84226]
[1763339371262,1.98967418,3130.7,3129.4,2.84226]
[1763339371462,1.98967418,3130.7,3129.5,2.84226]
[1763339371687,0.405504,3130.7,3129.5,2.84226]
[1763339371874,2.95043864,3133.3,3130.3,0.1868]
[1763339372083,0.29847601,3133.2,3131.2,1.13603335]
[1763339372283,1.89318299,3133.1,3130.3,0.1868]
[1763339372467,0.405504,3132.6,3130.0,2.84226]
[1763339372666,0.405504,3132.3,3130.1,0.284226]
[1763339373005,1.56771598,3132.1,3130.1,0.284226]
[1763339373207,1.86835885,3132.0,3130.1,0.284226]
[1763339373499,1.5287796,3132.4,3130.1,3.611386]
[1763339373700,1.52983503,3132.2,3130.2,0.4849]
[1763339373999,0.48133112,3132.1,3130.3,0.3611386]
[1763339374200,0.405504,3131.9,3130.3,0.3611386]
[1763339374372,1.83388355,3131.8,3130.0,3.51396]
[1763339374701,0.405504,3131.9,3130.0,3.51396]
[1763339374882,0.405504,3131.7,3130.0,3.51396]
[1763339375063,1.52548009,3131.6,3130.0,3.02906]
[1763339375263,0.405504,3132.0,3130.0,2.84226]
[1763339375518,0.405504,3132.0,3129.6,3.97088992]
[1763339375519,1.95973311,3131.1,3129.6,3.97088992]
[1763339375663,1.1337408,3130.9,3129.6,3.97088992]
[1763339375998,3.14683434,3131.0,3129.2,3.97088992]
[1763339375999,2.27939955,3130.8,3129.2,3.97088992]
[1763339376201,0.405504,3130.3,3129.2,3.97088992]
[1763339376420,0.405504,3130.1,3129.0,3.97188992]
[1763339376722,0.405504,3130.3,3129.0,3.97188992]
[1763339376927,0.405504,3130.1,3129.0,4.36907891]
[1763339377086,1.58866699,3131.4,3129.0,4.36907891]
[1763339377283,1.51181567,3130.6,3129.9,0.001]
[1763339377600,0.29843293,3130.5,3129.2,3.97088992]
[1763339377921,0.29843293,3130.5,3129.5,0.001]
[1763339378223,0.31936628,3130.8,3129.5,0.001]
[1763339378400,1.91731967,3130.6,3129.5,0.001]
[1763339378597,1.5353208,3131.8,3129.5,0.001]
[1763339378813,0.29835926,3131.7,3129.6,0.4849]
[1763339379012,0.29835926,3132.3,3129.6,0.4849]
[1763339379214,1.82713886,3132.4,3130.1,3.97088992]
[1763339379530,0.29835926,3132.3,3130.1,3.97088992]
[1763339379688,1.52983503,3132.2,3130.2,0.6717]
[1763339379993,1.1337408,3132.9,3130.3,0.46425899]
[1763339380203,1.84150655,3132.8,3130.3,0.94915899]
[1763339380402,1.52980186,3132.3,3130.3,0.94915899]
[1763339380624,1.56971598,3132.1,3130.4,0.4849]
[1763339380924,0.002,3132.1,3130.4,0.4849]
[1763339381509,0.20126948,3132.0,3129.9,3.97088992]
[1763339381710,1.68908891,3132.0,3130.0,0.88198899]
[1763339381911,0.405504,3131.5,3130.7,2.2717356]
[1763339382118,0.405504,3131.9,3130.7,2.2717356]
[1763339382420,0.405504,3131.7,3130.7,2.2717356]
[1763339382624,0.31838158,3131.7,3130.7,2.2717356]
[1763339382810,1.5412448,3132.1,3130.7,2.2717356]
[1763339382995,0.29822681,3132.0,3130.8,2.2717356]
[1763339383195,0.002,3132.1,3130.9,2.2717356]
[1763339383486,0.002,3132.1,3131.0,2.2717356]
[1763339383720,0.94474009,3132.0,3131.0,2.2717356]
[1763339383952,1.1961857,3132.0,3131.4,1.70408777]
[1763339384118,0.002,3132.1,3130.9,2.2717356]
[1763339384439,0.002,3132.1,3131.0,2.2717356]
[1763339384639,0.002,3132.1,3131.1,2.2717356]
[1763339385027,0.002,3132.1,3131.0,2.2717356]
[1763339386667,0.94474009,3132.0,3131.0,2.2717356]
[1763339386953,0.94474009,3132.0,3131.1,2.49890916]
[1763339387316,0.94474009,3132.0,3130.6,2.83970512]
[1763339387317,0.94474009,3132.0,3131.0,2.2717356]
[1763339387762,2.07848089,3132.0,3131.0,2.2717356]
[1763339387920,0.405504,3131.9,3131.0,2.2717356]
[1763339388119,3.61380169,3131.8,3130.9,2.2717356]
[1763339388344,0.94474009,3131.8,3130.8,2.2717356]
[1763339388653,1.19495481,3131.8,3130.8,2.2717356]
[1763339388861,0.94474009,3131.8,3130.8,2.2717356]
[1763339389734,2.07848089,3131.8,3130.8,2.2717356]
[1763339389934,0.002,3132.1,3130.8,2.2717356]
[1763339390256,0.002,3132.1,3132.0,0.48490003]
[1763339390461,0.15963514,3133.5,3132.0,0.48490003]
[1763339390663,0.2766,3133.6,3132.0,0.48490003]
[1763339391158,0.45737255,3133.6,3132.0,0.48490003]
[1763339391354,0.46503363,3133.6,3132.0,0.48490003]
[1763339391574,0.19108368,3134.2,3132.0,0.48490003]
[1763339391768,1.90016519,3134.4,3132.0,0.48490003]
[1763339391769,0.29815723,3134.3,3132.0,0.48490003]
[1763339391972,1.76370087,3134.4,3132.0,0.48490003]
[1763339392876,1.84085482,3134.3,3132.0,0.48490003]
[1763339393178,1.5694304,3134.1,3132.0,0.48490003]
[1763339393971,0.20261905,3134.2,3132.0,0.48490003]
[1763339394172,0.405504,3134.3,3132.0,0.48490003]
[1763339394352,1.52485582,3134.0,3132.0,0.48490003]
[1763339394541,1.9749344,3134.1,3132.0,0.48490003]
[1763339394738,0.405504,3134.1,3132.0,0.48490003]
[1763339394938,1.50832637,3134.2,3132.0,0.48490003]
[1763339394939,0.19138304,3134.0,3132.0,0.48490003]
[1763339395146,1.71623886,3134.0,3132.0,0.48490003]
[1763339395336,0.19138304,3134.0,3132.0,0.48490003]
[1763339395676,0.19138304,3134.0,3132.0,0.48590003]
[1763339395883,0.405504,3134.2,3132.0,0.48590003]
[1763339395884,0.405504,3134.1,3132.0,0.48590003]
[1763339396041,0.405504,3133.9,3132.0,0.48590003]
[1763339396392,1.95585342,3133.9,3132.0,0.48590003]
[1763339397237,1.54309489,3134.3,3132.0,0.48590003]
[1763339397578,0.18733568,3134.4,3132.0,0.48590003]
[1763339397579,1.5694304,3134.1,3132.0,0.48590003]
[1763339397976,0.57854706,3134.2,3132.0,0.48590003]
[1763339398272,1.5694304,3134.1,3132.0,0.00100003]
[1763339398477,0.405504,3134.1,3132.0,0.48450003]
[1763339398675,0.405504,3133.5,3132.0,0.48450003]
[1763339399067,1.51122161,3133.2,3132.0,0.001]
[1763339399292,1.55148077,3133.0,3132.0,0.001]
[1763339399492,0.59717656,3133.1,3132.0,0.001]
[1763339399672,0.405504,3132.9,3132.0,0.001]
[1763339399994,0.405504,3133.4,3132.0,0.001]
[1763339400315,1.5694304,3134.1,3132.1,0.1819]
[1763339400459,1.68136943,3134.2,3132.1,0.1819]
[1763339400795,1.68136943,3134.2,3132.2,0.4835]
[1763339401000,1.73756734,3134.1,3132.2,0.4835]
[1763339401161,1.73756734,3134.1,3132.1,0.12972]
[1763339401493,0.3984,3134.0,3132.1,0.12972]
[1763339401699,0.1328,3134.3,3132.1,0.12972]
[1763339401910,1.67589489,3134.3,3132.1,0.12972]
[1763339402057,2.07429489,3134.3,3132.1,0.12972]
[1763339402262,0.405504,3134.0,3132.1,0.12972]
[1763339402491,1.95134789,3133.8,3132.1,0.12972]
[1763339402790,0.99903879,3133.7,3132.1,0.12972]
[1763339402967,0.405504,3134.1,3132.2,1.13309144]
[1763339403291,0.1328,3134.3,3132.4,1.13309144]
[1763339403660,0.1328,3134.3,3132.5,0.4835]
[1763339404196,0.18733568,3134.4,3132.5,0.4835]
[1763339404197,1.53459563,3135.5,3134.2,0.1819]
[1763339404363,1.14784264,3136.3,3134.2,0.1819]
[1763339404560,1.14784264,3136.4,3134.3,0.4835]
[1763339404760,1.14784264,3136.2,3134.3,0.4835]
[1763339405363,1.14784264,3136.4,3134.3,0.4835]
[1763339405564,1.14784264,3136.5,3134.3,0.4835]
[1763339405886,1.14784264,3136.7,3134.3,0.4835]
[1763339406090,1.83518819,3136.8,3134.4,0.405504]
[1763339406392,1.14784264,3136.3,3134.3,0.4835]
[1763339406623,1.14784264,3136.2,3134.3,0.4835]
[1763339407205,1.14784264,3136.1,3134.3,0.4835]
[1763339407605,1.72443018,3136.4,3134.3,0.4835]
[1763339407606,2.28158344,3135.8,3134.3,0.4835]
[1763339407811,0.68734555,3135.8,3134.3,0.4835]
[1763339408025,2.13526546,3135.7,3134.0,0.1819]
[1763339408231,3.08794227,3135.5,3133.3,0.1819]
[1763339408536,0.405504,3134.0,3132.0,0.001]
[1763339408699,0.405504,3133.8,3132.0,0.001]
[1763339408896,1.5857019,3133.5,3132.0,0.001]
[1763339409109,0.405504,3133.2,3132.0,0.001]
[1763339409434,0.405504,3133.6,3132.0,0.4845]
[1763339409606,1.57928244,3133.3,3132.0,0.001]
[1763339409810,0.3984,3133.4,3132.0,0.001]
[1763339410006,2.18147482,3133.4,3132.0,0.001]
[1763339410265,0.5312,3134.1,3132.1,0.4835]
[1763339410534,0.78224443,3134.1,3132.1,0.4835]
[1763339410708,0.68794562,3134.5,3132.1,0.4835]
[1763339411235,0.3984,3134.4,3132.1,0.4835]
[1763339411398,0.68784869,3134.8,3132.1,0.4835]
[1763339411597,0.3984,3135.0,3132.1,0.4835]
[1763339411598,0.6501916,3134.5,3132.1,0.4835]
[1763339411794,0.68784869,3134.9,3132.2,1.69773988]
[1763339412053,2.86498683,3135.2,3132.1,0.4835]
[1763339412199,0.405504,3134.9,3132.1,0.4835]
[1763339412397,0.405504,3134.7,3132.1,0.4835]
[1763339412621,0.405504,3134.5,3132.1,0.4835]
[1763339413023,0.68784869,3134.8,3132.1,2.18123988]
[1763339413232,0.68784869,3135.1,3132.3,1.69773988]
[1763339413436,0.68784869,3135.3,3132.6,0.405504]
[1763339413638,0.62732448,3135.5,3132.7,0.4835]
[1763339413840,1.82158949,3135.5,3132.7,0.4835]
[1763339414050,0.68784869,3135.5,3132.8,0.405504]
[1763339414354,0.68784869,3135.7,3133.0,0.405504]
[1763339414557,1.72643018,3136.2,3135.4,0.1819]
[1763339414558,0.68784869,3135.9,3135.4,0.1819]
[1763339414714,0.002,3136.2,3135.4,0.1819]
[1763339414918,0.002,3136.2,3135.5,0.4835]
[1763339415358,1.72443018,3137.2,3135.6,0.405504]
[1763339415656,1.72443018,3137.5,3135.6,0.405504]
[1763339415840,1.72443018,3137.4,3135.5,0.405504]
[1763339416218,1.72443018,3137.5,3135.5,0.405504]
[1763339416619,0.02196484,3137.6,3135.5,0.405504]
[1763339416819,1.74639502,3137.6,3135.5,0.405504]
[1763339417215,0.02196484,3137.6,3135.5,0.405504]
[1763339417461,0.42643018,3137.8,3135.6,1.1337408]
[1763339417661,0.00447026,3139.0,3137.8,0.405504]
[1763339417958,5.80337435,3140.6,3137.8,0.405504]
[1763339417959,2.8715411,3140.5,3138.8,0.405504]
[1763339418163,2.8715411,3140.6,3138.1,3.373]
[1763339418362,2.8715411,3140.6,3138.2,4.5067408]
[1763339418663,9.28539896,3142.6,3138.3,0.405504]
[1763339418664,2.8715411,3140.8,3138.3,0.405504]
[1763339418817,2.8715411,3140.8,3137.9,0.405504]
[1763339419165,2.8715411,3140.8,3138.5,0.405504]
[1763339419455,0.4946,3142.1,3137.5,1.73774259]
[1763339419456,1.72556603,3144.0,3137.5,2.7714834]
[1763339419658,1.72556603,3144.0,3138.4,1.1337408]
[1763339419858,0.4946,3142.1,3138.5,0.405504]
[1763339420343,0.405504,3141.9,3138.5,0.405504]
[1763339420679,0.900104,3141.4,3137.6,20.6296]
[1763339420823,0.405504,3141.0,3137.6,20.6296]
[1763339421015,0.405504,3141.0,3137.6,20.61333]
[1763339421244,0.405504,3140.8,3137.6,20.21157]
[1763339421766,0.405504,3140.6,3137.4,20.6296]
[1763339422063,0.405504,3140.6,3137.5,2.06296]
[1763339422260,0.405504,3140.4,3137.5,2.06296]
[1763339422830,0.405504,3140.2,3137.5,2.06296]
[1763339423316,0.1964,3140.7,3136.7,20.6296]
[1763339423317,1.50969197,3139.9,3136.7,20.6296]
[1763339423548,1.52694765,3138.9,3135.6,1.1187263]
[1763339423750,2.8710046,3138.8,3135.0,1.1187263]
[1763339424058,0.405504,3138.7,3135.3,1.1187263]
[1763339424241,0.405504,3138.7,3134.3,0.405504]
[1763339424242,0.1964,3138.8,3135.7,1.1187263]
[1763339424443,1.50969197,3139.9,3135.8,0.67103244]
[1763339424444,0.405504,3138.6,3135.8,0.67103244]
[1763339424653,0.405504,3138.6,3135.9,0.67103244]
[1763339424861,0.1964,3139.4,3134.7,22.86705261]
[1763339424862,0.4717,3138.8,3136.0,0.67088006]
[1763339425030,0.6681,3139.4,3136.1,0.67088006]
[1763339425231,0.405504,3139.2,3135.5,1.1187263]
[1763339425564,0.405504,3139.2,3135.6,0.67076654]
[1763339425763,0.405504,3139.0,3135.7,0.67076654]
[1763339425919,0.405504,3139.0,3135.8,0.67076654]
[1763339426258,0.1964,3139.4,3135.2,1.1187263]
[1763339426259,1.97497409,3138.6,3135.2,1.1187263]
[1763339426421,0.1964,3139.4,3134.8,20.6296]
[1763339426422,0.4717,3138.5,3135.5,1.1187263]
[1763339426627,0.4717,3138.5,3135.6,0.67125846]
[1763339426858,0.4717,3138.5,3135.7,0.67125846]
[1763339426859,0.405504,3138.4,3135.7,0.67125846]
[1763339427066,0.405504,3138.4,3135.8,0.67125846]
[1763339427221,0.405504,3138.3,3135.9,0.67125846]
[1763339427418,0.4717,3138.4,3136.0,0.67125846]
[1763339427618,0.4717,3138.4,3136.1,0.67125846]
[1763339427822,1.51942173,3139.3,3136.2,0.67125846]
[1763339428047,0.4717,3138.3,3135.3,20.6296]
[1763339428261,1.96941447,3138.2,3135.4,0.67149141]
[1763339428419,0.405504,3138.0,3135.5,0.67149141]
[1763339428625,0.405504,3138.0,3135.6,0.67149141]
[1763339428826,0.405504,3137.8,3135.0,0.83902651]
[1763339429100,0.405504,3137.7,3135.1,0.67175089]
[1763339429302,1.96373153,3137.6,3134.6,0.83902651]
[1763339429606,0.405504,3136.9,3134.2,0.83902651]
[1763339429762,0.71524315,3137.5,3134.3,1.51171625]
[1763339429966,0.405504,3136.9,3134.5,0.83902651]
[1763339430202,1.1337408,3137.3,3134.6,0.67268974]
[1763339430203,0.4717,3136.8,3134.6,0.67268974]
[1763339430403,1.96591794,3136.7,3134.2,0.83902651]
[1763339430576,0.64926579,3136.6,3134.3,0.67292834]
[1763339430780,0.405504,3136.0,3134.4,0.67292834]
[1763339431000,0.405504,3136.0,3134.5,0.67292834]
[1763339431303,0.405504,3136.0,3134.1,0.83902651]
[1763339431304,0.405504,3135.8,3134.1,0.83902651]
[1763339431496,0.405504,3135.8,3134.2,0.67296401]
[1763339431799,0.877204,3135.7,3134.3,0.67296401]
[1763339431999,0.877204,3135.7,3134.0,0.83902651]
[1763339432204,1.1337408,3136.9,3134.0,0.83902651]
[1763339432205,0.405504,3135.5,3134.1,0.67300605]
[1763339432527,0.405504,3135.5,3134.2,0.67300605]
[1763339432671,0.405504,3135.3,3135.0,0.001]
[1763339433098,0.405504,3135.1,3135.0,0.001]
[1763339433500,0.877204,3135.8,3135.0,0.001]
[1763339433683,0.4717,3136.3,3135.0,0.001]
[1763339433887,0.4717,3137.4,3135.1,0.67267947]
[1763339434085,0.68712432,3137.4,3135.0,0.001]
[1763339434366,0.4717,3137.4,3135.1,0.67279908]
[1763339434592,0.4717,3137.3,3135.2,0.67279908]
[1763339434795,0.4717,3137.3,3135.3,0.67263215]
[1763339435002,0.4717,3137.3,3135.0,0.001]
[1763339435182,0.4717,3137.3,3135.1,0.67259736]
[1763339435383,0.4717,3137.3,3135.0,0.001]
[1763339435724,0.405504,3137.1,3135.0,0.001]
[1763339435906,0.4717,3137.3,3135.0,0.001]
[1763339436221,2.5727408,3137.6,3135.1,0.67273926]
[1763339436222,0.4717,3137.2,3135.1,0.67273926]
[1763339436506,0.4717,3137.2,3135.0,0.001]
[1763339436507,1.50648352,3137.1,3135.0,0.001]
[1763339436806,0.4717,3137.2,3135.0,0.001]
[1763339437006,0.4717,3137.2,3135.1,0.67273418]
[1763339437208,2.00140391,3137.2,3135.0,0.001]
[1763339437416,0.4717,3137.2,3135.1,0.67279634]
[1763339437576,0.4717,3137.2,3135.0,0.001]
[1763339437577,1.52491836,3137.0,3135.0,0.001]
[1763339437773,0.405504,3136.7,3135.0,0.001]
[1763339438010,0.405504,3136.5,3135.0,0.001]
[1763339438309,1.57068418,3136.2,3135.0,0.001]
[1763339438514,1.53822684,3136.6,3135.0,0.001]
[1763339438709,0.405504,3136.5,3135.0,0.001]
[1763339438882,2.4139793,3136.5,3135.0,0.001]
[1763339439082,0.877204,3136.5,3135.0,0.001]
[1763339439283,0.877204,3136.4,3135.0,0.001]
[1763339439496,0.877204,3136.4,3133.6,0.83902651]
[1763339439497,0.405504,3136.0,3133.6,0.83902651]
[1763339439683,0.405504,3134.0,3133.7,0.67392491]
[1763339439886,0.405504,3134.0,3133.8,0.67402697]
[1763339440096,0.405504,3134.2,3133.9,0.67402697]
[1763339440294,0.405504,3134.2,3133.5,0.83902651]
[1763339440473,0.405504,3134.7,3133.6,0.67415994]
[1763339440682,0.405504,3134.7,3133.7,0.67415994]
[1763339440884,0.405504,3134.5,3133.8,0.67415994]
[1763339441171,0.405504,3134.5,3133.1,1.93676385]
[1763339441172,0.405504,3134.5,3133.9,0.67415994]
[1763339441377,0.405504,3134.5,3133.6,0.83902651]
[1763339441378,0.4717,3134.6,3134.0,0.67415994]
[1763339441598,0.405504,3134.5,3133.5,0.83902651]
[1763339441777,0.405504,3134.5,3133.6,0.67420759]
[1763339442105,0.405504,3134.6,3133.7,0.67420759]
[1763339442409,0.4717,3134.7,3133.3,1.1187263]
[1763339442410,0.405504,3134.4,3133.8,0.67420759]
[1763339442608,0.405504,3134.4,3133.9,0.67420759]
[1763339442795,0.405504,3134.4,3133.4,0.83902651]
[1763339442796,0.405504,3134.2,3133.4,0.83902651]
[1763339442999,0.405504,3134.2,3133.5,0.67460535]
[1763339443198,0.405504,3134.0,3133.4,0.19577528]
[1763339443405,0.405504,3134.0,3133.3,0.83902651]
[1763339443579,0.405504,3133.8,3133.3,2.23745261]
[1763339443777,0.1964,3134.3,3133.4,2.23745261]
[1763339444016,0.405504,3134.2,3133.3,2.23745261]
[1763339444401,0.405504,3134.0,3132.8,2.79681577]
[1763339444728,0.405504,3134.0,3132.8,3.07649735]
[1763339444879,0.405504,3133.8,3132.9,2.79681577]
[1763339445081,0.4717,3133.9,3132.9,2.79681577]
[1763339445276,0.4717,3133.9,3132.8,0.27968158]
[1763339445489,0.1964,3134.3,3132.7,0.4814]
[1763339445703,0.4717,3134.6,3132.7,0.4814]
[1763339446013,0.4717,3135.0,3132.7,0.4814]
[1763339446236,0.4717,3135.0,3132.7,3.28782621]
[1763339446378,0.4717,3135.0,3133.2,2.80642621]
[1763339446578,0.4717,3135.0,3133.3,0.44784262]
[1763339446777,0.4717,3135.0,3133.5,2.80642621]
[1763339446979,0.405504,3134.9,3133.8,2.80642621]
[1763339447225,0.4717,3135.0,3133.7,2.80642621]
[1763339447433,0.4717,3134.9,3133.3,2.80642621]
[1763339447720,0.4717,3134.9,3133.4,2.80642621]
[1763339447877,0.405504,3134.8,3133.3,0.28064262]
[1763339448384,0.405504,3134.6,3133.4,2.80642621]
[1763339448915,0.4717,3134.5,3133.4,2.80642621]
[1763339449120,0.405504,3134.4,3133.3,2.80642621]
[1763339449416,0.405504,3134.4,3133.3,3.08706883]
[1763339449591,0.405504,3134.2,3133.3,3.08706883]
[1763339449792,0.405504,3134.2,3133.2,2.80642621]
[1763339449988,0.405504,3134.0,3133.2,2.80642621]
[1763339450210,0.405504,3134.0,3132.2,6.09425243]
[1763339450211,1.54751832,3135.2,3133.1,2.80642621]
[1763339450415,0.4717,3133.9,3133.1,2.80642621]
[1763339450615,1.54751832,3135.2,3133.1,2.80642621]
[1763339450818,1.52327952,3135.0,3133.1,2.80642621]
[1763339451033,1.50245837,3134.8,3132.9,2.30642621]
[1763339451191,1.53007374,3134.6,3132.9,2.30642621]
[1763339451384,1.86707986,3134.5,3132.2,3.9289967]
[1763339451679,0.4943,3134.6,3132.2,3.9289967]
[1763339451789,1.53508176,3134.9,3133.3,0.001]
[1763339452133,1.57237297,3134.5,3133.3,0.001]
[1763339452422,0.4943,3135.2,3133.3,0.001]
[1763339452423,0.405504,3133.8,3133.3,0.001]
[1763339452788,0.405504,3133.6,3133.3,0.001]
[1763339453208,0.1994,3133.7,3133.3,0.001]
[1763339453534,1.53007374,3134.6,3133.3,0.001]
[1763339453535,0.4943,3133.6,3133.3,0.001]
[1763339453833,0.6937,3134.1,3133.3,0.001]
[1763339453987,0.4943,3134.0,3133.3,0.001]
[1763339454386,0.4943,3134.0,3133.3,2.26185073]
[1763339455194,0.405504,3133.9,3133.4,2.93950616]
[1763339455387,0.405504,3133.9,3133.5,0.67865543]
[1763339455593,0.405504,3133.7,3133.6,0.67865543]
[1763339456210,0.899804,3133.7,3133.6,0.67865543]
[1763339456820,0.405504,3133.7,3133.6,0.67865543]
[1763339456991,0.1994,3134.1,3133.6,0.67865543]
[1763339457330,0.46238579,3134.0,3133.7,0.67865543]
[1763339457493,0.46238579,3134.0,3133.8,0.67865543]
[1763339457693,0.405504,3133.9,3133.4,2.26085073]
[1763339457895,0.405504,3133.9,3133.5,0.67934395]
[1763339458230,0.405504,3134.0,3133.6,0.67934395]
[1763339458532,0.405504,3134.0,3133.7,0.67934395]
[1763339458716,0.405504,3134.0,3133.8,0.67934395]
[1763339458917,0.405504,3134.0,3133.9,0.67934395]
[1763339459117,0.7024315,3134.0,3133.9,0.67934395]
[1763339459328,0.7024315,3134.0,3133.3,0.001]
[1763339459329,1.1967315,3134.0,3133.3,0.001]
[1763339459643,0.583404,3132.4,3132.3,3.8285567]
[1763339459827,0.4943,3132.9,3132.3,3.8285567]
[1763339460028,0.1964,3132.5,3131.7,0.001]
[1763339460358,0.1964,3132.5,3132.0,2.83743533]
[1763339460505,0.4943,3132.4,3132.0,2.83743533]
[1763339461050,0.29721436,3132.3,3131.8,3.533e-05]
[1763339461357,0.29721436,3132.3,3131.7,0.001]
[1763339461500,0.6907,3132.5,3131.7,0.001]
[1763339461700,0.405504,3132.3,3131.7,0.001]
[1763339462261,0.1964,3132.5,3131.7,0.001]
[1763339462403,0.405504,3132.3,3131.7,0.001]
[1763339462604,0.1964,3132.5,3131.7,0.001]
[1763339463244,0.1964,3132.9,3131.7,0.001]
[1763339463440,0.4943,3132.8,3131.7,0.001]
[1763339463603,0.29645707,3132.7,3132.5,1.70103602]
[1763339463806,0.899804,3132.6,3132.5,1.70103602]
[1763339464109,1.19626107,3132.6,3132.5,1.70103602]
[1763339464412,0.405504,3132.5,3131.7,0.001]
[1763339464614,0.1964,3132.9,3131.8,0.1928]
[1763339464822,0.29641736,3133.2,3132.8,1.70004556]
[1763339465024,0.4943,3133.8,3132.9,1.70004556]
[1763339465215,0.4943,3133.8,3133.1,1.70004556]
[1763339465427,3.52768038,3133.6,3133.1,1.70004556]
[1763339465708,3.2137427,3133.5,3133.0,1.70004556]
[1763339466146,0.1964,3133.1,3132.9,1.70004556]
[1763339466441,1.58407871,3132.9,3131.7,0.001]
[1763339466631,1.82285776,3132.8,3131.7,0.001]
[1763339466848,0.405504,3132.7,3131.7,0.001]
[1763339467252,0.899804,3132.7,3131.7,0.001]
[1763339467447,0.6907,3133.1,3131.7,0.001]
[1763339467649,0.29726853,3133.0,3131.7,0.4997]
[1763339467848,0.405504,3132.7,3131.7,0.001]
[1763339468361,0.405504,3132.5,3131.7,0.001]
[1763339469024,0.405504,3132.9,3131.7,0.001]
[1763339469225,0.405504,3132.7,3131.7,0.001]
[1763339469437,0.29747604,3132.6,3131.7,0.001]
[1763339469655,0.405504,3132.5,3131.7,2.2689695]
[1763339470178,1.1337408,3133.5,3131.7,2.49586645]
[1763339470326,1.43145709,3133.0,3131.8,2.2679695]
[1763339470566,0.1964,3133.1,3131.9,2.2679695]
[1763339470762,0.1964,3133.1,3132.0,0.27666695]
[1763339470964,0.899804,3133.0,3132.0,0.27666695]
[1763339471263,1.88177867,3132.9,3132.0,0.27666695]
[1763339471463,0.899804,3133.0,3132.1,0.6795473]
[1763339471663,0.405504,3132.6,3132.2,0.6795473]
[1763339471896,0.405504,3132.4,3132.3,0.6795473]
[1763339472061,0.70327237,3132.4,3132.3,0.6795473]
[1763339472800,1.19757237,3132.4,3132.3,0.6795473]
[1763339474066,0.70327237,3132.4,3132.3,0.6795473]
[1763339474301,0.29776837,3132.4,3132.3,0.6795473]
[1763339474524,0.29776837,3132.5,3132.3,0.6795473]
[1763339474679,0.899804,3132.5,3132.4,0.6795473]
[1763339475005,1.19757237,3132.5,3132.4,0.6795473]
[1763339475870,0.1964,3132.7,3132.4,0.6795473]
[1763339476071,1.096204,3132.7,3132.5,1.81169756]
[1763339476306,0.405504,3132.5,3132.2,1.13215026]
[1763339476464,0.1964,3132.7,3132.2,1.13215026]
[1763339476670,2.11692276,3132.7,3132.2,1.13215026]
[1763339476985,1.43170213,3132.6,3132.1,1.13215026]
[1763339477192,0.29815023,3132.5,3132.2,1.13215026]
[1763339477503,0.405504,3132.5,3132.0,1.13215026]
[1763339477687,0.405504,3132.3,3132.0,1.13215026]
[1763339477902,0.1964,3132.7,3132.0,1.13215026]
[1763339478068,0.29818764,3132.6,3132.2,1.13215026]
[1763339478264,0.29818764,3132.5,3132.2,1.13215026]
[1763339478588,0.1964,3132.7,3132.2,1.13215026]